fUSD/lending_fUSD_20251024
["ID","MTS","AMOUNT","RATE_DAILY","PERIOD"]
[392231729,1761271851054,-500.0,0.00042465,30]
[392231730,1761271851063,-300.0,0.00042465,30]
[392231731,1761271851072,-1099.63,0.00042465,30]
[392231732,1761271851081,-561.56,0.00042465,30]
[392231733,1761271851091,-500.0,0.00042465,30]
[392231734,1761271851100,-500.0,0.00042465,30]
[392231735,1761271851110,-244.9050911,0.00042465,30]
[392231736,1761271851119,-500.0,0.00042465,30]
[392231737,1761271851128,-653.3,0.00042465,30]
[392231738,1761271851138,-500.0,0.00042465,30]
[392231739,1761271851147,-500.0,0.00042465,30]
[392231740,1761271851156,-622.84,0.00042465,30]
[392231741,1761271851167,-500.0,0.00042465,30]
[392231742,1761271851177,-263.16207694,0.00042465,30]
[392231743,1761271851188,-500.0,0.00042465,30]
[392231744,1761271851197,-500.0,0.00042465,30]
[392231745,1761271851207,-500.0,0.00042465,30]
[392231746,1761271851216,-1019.47,0.00042465,30]
[392231747,1761271851227,-271.15583589,0.00042465,30]
[392231748,1761271851236,-500.0,0.00042465,30]
[392231749,1761271851246,-1154.68,0.00042465,30]
[392231750,1761271851257,-1155.43,0.00042465,30]
[392231751,1761271851266,-500.0,0.00042465,30]
[392231752,1761271851277,-742.27,0.00042465,30]
[392231753,1761271851286,-881.73,0.00042465,30]
[392231754,1761271851295,-500.0,0.00042465,30]
[392231755,1761271851304,-500.0,0.00042465,30]
[392231756,1761271851314,-560.93,0.00042465,30]
[392231757,1761271851323,-588.28,0.00042465,30]
[392231758,1761271851332,-500.0,0.00042465,30]
[392231759,1761271851341,-500.0,0.00042465,30]
[392231760,1761271851350,-500.0,0.00042465,30]
[392231761,1761271851359,-500.0,0.00042465,30]
[392231762,1761271851368,-500.0,0.00042465,30]
[392231763,1761271851377,-500.0,0.00042465,30]
[392231764,1761271851386,-500.0,0.00042465,30]
[392231765,1761271851395,-500.0,0.00042465,30]
[392231766,1761271851404,-500.0,0.00042465,30]
[392231767,1761271851414,-500.0,0.00042465,30]
[392231768,1761271851423,-1170.11,0.00042465,30]
[392231769,1761271851433,-500.0,0.00042465,30]
[392231770,1761271851442,-500.0,0.00042465,30]
[392231771,1761271851451,-500.0,0.00042465,30]
[392231772,1761271851460,-500.0,0.00042465,30]
[392231773,1761271851470,-500.0,0.00042465,30]
[392231774,1761271851481,-506.07383673,0.00042465,30]
[392231775,1761271851492,-500.0,0.00042465,30]
[392231776,1761271851502,-500.0,0.00042465,30]
[392231777,1761271851511,-500.0,0.00042465,30]
[392231778,1761271851523,-1281.44,0.00042465,30]
[392231779,1761271851532,-500.0,0.00042465,30]
[392231780,1761271851542,-1149.85,0.00042465,30]
[392231781,1761271851551,-500.0,0.00042465,30]
[392231782,1761271851561,-721.29,0.00042465,30]
[392231783,1761271851570,-500.0,0.00042465,30]
[392231784,1761271851579,-500.0,0.00042465,30]
[392231785,1761271851589,-500.0,0.00042465,30]
[392231786,1761271851599,-949.68,0.00042465,30]
[392231787,1761271851608,-500.0,0.00042465,30]
[392231788,1761271851617,-1095.76,0.00042465,30]
[392231789,1761271851626,-752.06,0.00042465,30]
[392231790,1761271851635,-297.53133136,0.00042465,30]
[392231791,1761271851647,-202.46866864,0.00042465,30]
[392231792,1761271851656,-264.15752872,0.00042465,30]
[392231793,1761271851671,-744.14247128,0.00042465,30]
[392231794,1761271851680,-896.07,0.00042465,30]
[392231795,1761271851690,-526.38,0.00042465,30]
[392231796,1761271851699,-500.0,0.00042465,30]
[392231797,1761271851708,-339.64188824,0.00042465,30]
[392231798,1761271851717,-500.0,0.00042465,30]
[392231799,1761271851726,-333.00734677,0.00042465,30]
[392231800,1761271851737,-166.99265323,0.00042465,30]
[392231801,1761271851746,-500.0,0.00042465,30]
[392231802,1761271851755,-500.0,0.00042465,30]
[392231803,1761271851763,-500.0,0.00042465,30]
[392231804,1761271851772,-643.72,0.00042465,30]
[392231805,1761271851781,-201.77492785,0.00042465,30]
[392231806,1761271851790,-1180.71,0.00042465,30]
[392231807,1761271851799,-500.0,0.00042465,30]
[392231808,1761271851808,-500.0,0.00042465,30]
[392231809,1761271851817,-1096.38,0.00042465,30]
[392231810,1761271851827,-500.0,0.00042465,30]
[392231811,1761271851836,-715.37,0.00042465,30]
[392231812,1761271851845,-500.0,0.00042465,30]
[392231813,1761271851854,-855.05,0.00042465,30]
[392231814,1761271851863,-500.0,0.00042465,30]
[392231815,1761271851873,-1905.27,0.00042465,30]
[392231816,1761271851882,-500.0,0.00042465,30]
[392231817,1761271851891,-500.0,0.00042465,30]
[392231818,1761271851900,-514.64,0.00042465,30]
[392231819,1761271851910,-431.25855446,0.00042465,30]
[392231820,1761271851919,-1125.38,0.00042465,30]
[392231821,1761271851928,-500.0,0.00042465,30]
[392231822,1761271851938,-500.0,0.00042465,30]
[392231823,1761271851948,-931.76,0.00042465,30]
[392231824,1761271851962,-542.54,0.00042465,30]
[392231825,1761271851972,-500.0,0.00042465,30]
[392231826,1761271851981,-937.86,0.00042465,30]
[392231827,1761271851990,-1385.84,0.00042465,30]
[392231828,1761271852001,-939.34,0.00042465,30]
[392231829,1761271852011,-500.0,0.00042465,30]
[392231830,1761271852021,-500.0,0.00042465,30]
[392231831,1761271852031,-1058.11,0.00042465,30]
[392231832,1761271852041,-500.0,0.00042465,30]
[392231833,1761271852051,-925.75,0.00042465,30]
[392231834,1761271852061,-500.0,0.00042465,30]
[392231835,1761271852071,-500.0,0.00042465,30]
[392231836,1761271852080,-500.0,0.00042465,30]
[392231837,1761271852091,-858.12,0.00042465,30]
[392231838,1761271852102,-500.0,0.00042465,30]
[392231839,1761271852111,-501.43,0.00042465,30]
[392231840,1761271852121,-593.15,0.00042465,30]
[392231841,1761271852131,-749.63,0.00042465,30]
[392231842,1761271852143,-500.0,0.00042465,30]
[392231843,1761271852152,-699.35,0.00042465,30]
[392231844,1761271852162,-687.22,0.00042465,30]
[392231845,1761271852171,-500.0,0.00042465,30]
[392231846,1761271852180,-500.0,0.00042465,30]
[392231847,1761271852189,-1346.88,0.00042465,30]
[392231848,1761271852198,-926.82,0.00042465,30]
[392231849,1761271852207,-614.81,0.00042465,30]
[392231850,1761271852216,-500.0,0.00042465,30]
[392231851,1761271852225,-500.0,0.00042465,30]
[392231852,1761271852234,-500.0,0.00042465,30]
[392231853,1761271852243,-632.5,0.00042465,30]
[392231854,1761271852252,-500.0,0.00042465,30]
[392231855,1761271852261,-500.0,0.00042465,30]
[392231856,1761271852270,-500.0,0.00042465,30]
[392231857,1761271852279,-868.42,0.00042465,30]
[392231858,1761271852291,-987.29,0.00042465,30]
[392231859,1761271852300,-500.0,0.00042465,30]
[392231860,1761271852309,-500.0,0.00042465,30]
[392231861,1761271852319,-500.0,0.00042465,30]
[392231862,1761271852328,-973.02,0.00042465,30]
[392231863,1761271852338,-500.0,0.00042465,30]
[392231864,1761271852347,-1130.39,0.00042465,30]
[392231865,1761271852356,-630.06,0.00042465,30]
[392231866,1761271852366,-500.0,0.00042465,30]
[392231867,1761271852376,-500.0,0.00042465,30]
[392231868,1761271852386,-500.0,0.00042465,30]
[392231869,1761271852395,-606.57110081,0.00042465,30]
[392231870,1761271852406,-546.92,0.00042465,30]
[392231871,1761271852416,-1145.04,0.00042465,30]
[392231872,1761271852427,-500.0,0.00042465,30]
[392231873,1761271852437,-500.0,0.00042465,30]
[392231874,1761271852449,-500.0,0.00042465,30]
[392231875,1761271852458,-500.0,0.00042465,30]
[392231876,1761271852469,-512.3,0.00042465,30]
[392231877,1761271852479,-500.0,0.00042465,30]
[392231878,1761271852490,-500.0,0.00042465,30]
[392231879,1761271852500,-500.0,0.00042465,30]
[392231880,1761271852510,-926.49,0.00042465,30]
[392231881,1761271852522,-655.27,0.00042465,30]
[392231882,1761271852533,-1354.98,0.00042465,30]
[392231883,1761271852543,-500.0,0.00042465,30]
[392231884,1761271852554,-556.75380774,0.00042465,30]
[392231885,1761271852565,-500.0,0.00042465,30]
[392231886,1761271852574,-500.0,0.00042465,30]
[392231887,1761271852594,-1112.2,0.00042465,30]
[392231888,1761271852604,-12768.4906784,0.00042489,3]
[392231889,1761271852613,-10368.9258848,0.00042489,3]
[392231890,1761271852624,-5184.46294238,0.00042492,3]
[392231891,1761271852634,-500.0,0.00042499,30]
[392231892,1761271852645,-500.0,0.00042499,30]
[392231893,1761271852656,-500.0,0.00042499,30]
[392231894,1761271852666,-500.0,0.00042499,30]
[392231895,1761271852676,-500.0,0.00042499,30]
[392231896,1761271852686,-500.0,0.00042499,30]
[392231897,1761271852696,-500.0,0.00042499,30]
[392231898,1761271853053,-500.0,0.00042499,30]
[392231899,1761271853070,-881.6,0.00042499,30]
[392231900,1761271853080,-500.0,0.00042499,30]
[392231901,1761271853090,-500.0,0.00042499,30]
[392231902,1761271853103,-500.0,0.00042499,30]
[392231903,1761271853113,-1227.22,0.00042499,30]
[392231904,1761271853122,-607.68,0.00042499,30]
[392231905,1761271853131,-677.08,0.00042499,30]
[392231906,1761271853140,-500.0,0.00042499,30]
[392231907,1761271853150,-698.12,0.00042499,30]
[392231908,1761271853161,-500.0,0.00042499,30]
[392231909,1761271853171,-500.0,0.00042499,30]
[392231910,1761271853180,-500.0,0.00042499,30]
[392231911,1761271853189,-634.59,0.00042499,30]
[392231912,1761271853199,-500.0,0.00042499,30]
[392231913,1761271853209,-704.5,0.00042499,30]
[392231914,1761271853219,-613.78,0.00042499,30]
[392231915,1761271853228,-688.2,0.00042499,30]
[392231916,1761271853238,-591.54,0.00042499,30]
[392231917,1761271853249,-1164.66,0.00042499,30]
[392231918,1761271853258,-500.0,0.00042499,30]
[392231919,1761271853268,-500.0,0.00042499,30]
[392231920,1761271853277,-500.0,0.000425,30]
[392231921,1761271853287,-500.0,0.000425,30]
[392231922,1761271853296,-500.0,0.000425,30]
[392231923,1761271853306,-500.0,0.000425,30]
[392231924,1761271853316,-4907.76476222,0.00042502,2]
[392231925,1761271853326,-226.83201083,0.00042507,15]
[392231926,1761271853336,-1332.18944899,0.00042669,15]
[392231927,1761271853346,-38305.4720354,0.00042729,3]
[392231928,1761271853355,-41475.703539,0.00042729,3]
[392231929,1761271853365,-840.02,0.00042738,30]
[392231930,1761271853374,-500.0,0.00042738,30]
[392231931,1761271853383,-500.0,0.00042738,30]
[392231932,1761271853393,-548.7,0.00042738,30]
[392231933,1761271853403,-500.0,0.00042738,30]
[392231934,1761271853412,-439.91179348,0.00042738,30]
[392231935,1761271853421,-500.0,0.00042738,30]
[392231936,1761271853431,-500.0,0.00042738,30]
[392231937,1761271853441,-500.0,0.00042738,30]
[392231938,1761271853450,-500.0,0.00042738,30]
[392231939,1761271853460,-500.0,0.00042738,30]
[392231940,1761271853470,-500.0,0.00042738,30]
[392231941,1761271853483,-500.0,0.00042738,30]
[392231942,1761271853492,-500.0,0.00042738,30]
[392231943,1761271853501,-500.0,0.00042738,30]
[392231944,1761271853511,-500.0,0.00042738,30]
[392231945,1761271853520,-698.27,0.00042738,30]
[392231946,1761271853529,-500.0,0.00042738,30]
[392231947,1761271853538,-500.0,0.00042738,30]
[392231948,1761271853548,-383.46397366,0.00042738,30]
[392231949,1761271853558,-500.0,0.00042738,30]
[392231950,1761271853568,-500.0,0.00042738,30]
[392231951,1761271853578,-500.0,0.00042738,30]
[392231952,1761271853587,-998.06,0.00042738,30]
[392231953,1761271853597,-500.0,0.00042738,30]
[392231954,1761271853606,-621.69,0.00042738,30]
[392231955,1761271853616,-500.0,0.00042738,30]
[392231956,1761271853626,-544.93458847,0.00042738,30]
[392231957,1761271853636,-500.0,0.00042738,30]
[392231958,1761271853645,-500.0,0.00042738,30]
[392231959,1761271853655,-514.48,0.00042738,30]
[392231960,1761271853664,-930.49,0.00042738,30]
[392231961,1761271853674,-828.93,0.00042738,30]
[392231962,1761271853683,-500.0,0.00042738,30]
[392231963,1761271853693,-967.18,0.00042738,30]
[392231964,1761271853703,-500.0,0.00042738,30]
[392231965,1761271853713,-500.0,0.00042738,30]
[392231966,1761271853723,-500.0,0.00042738,30]
[392231967,1761271853733,-500.0,0.00042738,30]
[392231968,1761271853742,-1210.29,0.00042738,30]
[392231969,1761271853752,-1168.93,0.00042738,30]
[392231970,1761271853762,-500.0,0.00042738,30]
[392231971,1761271853771,-514.84,0.00042739,30]
[392231972,1761271853781,-549.08,0.00042739,30]
[392231973,1761271853790,-500.0,0.00042739,30]
[392231974,1761271853799,-500.0,0.00042739,30]
[392231975,1761271853809,-500.0,0.00042739,30]
[392231976,1761271853818,-618.1,0.00042739,30]
[392231977,1761271853828,-1072.81,0.00042739,30]
[392231978,1761271853838,-500.0,0.00042739,30]
[392231979,1761271853848,-500.0,0.00042739,30]
[392231980,1761271853858,-500.0,0.00042739,30]
[392231981,1761271853868,-311.83242133,0.00042739,30]
[392231982,1761271853878,-1099.63,0.00042739,30]
[392231983,1761271853887,-561.56,0.00042739,30]
[392231984,1761271853897,-500.0,0.00042739,30]
[392231985,1761271853907,-500.0,0.00042739,30]
[392231986,1761271853916,-500.0,0.00042739,30]
[392231987,1761271853926,-653.3,0.00042739,30]
[392231988,1761271853935,-500.0,0.00042739,30]
[392231989,1761271853945,-500.0,0.00042739,30]
[392231990,1761271853957,-622.84,0.00042739,30]
[392231991,1761271853971,-500.0,0.00042739,30]
[392231992,1761271853981,-500.0,0.00042739,30]
[392231993,1761271853990,-500.0,0.00042739,30]
[392231994,1761271854003,-500.0,0.00042739,30]
[392231995,1761271854013,-1019.47,0.00042739,30]
[392231996,1761271854023,-500.0,0.00042739,30]
[392231997,1761271854034,-1154.68,0.00042739,30]
[392231998,1761271854043,-1155.43,0.00042739,30]
[392231999,1761271854053,-500.0,0.00042739,30]
[392232000,1761271854063,-742.27,0.00042739,30]
[392232001,1761271854073,-881.73,0.00042739,30]
[392232002,1761271854082,-302.02613412,0.00042739,30]
[392232003,1761271854092,-500.0,0.00042739,30]
[392232004,1761271854101,-560.93,0.00042739,30]
[392232005,1761271854111,-588.28,0.00042739,30]
[392232006,1761271854120,-500.0,0.00042739,30]
[392232007,1761271854130,-500.0,0.00042739,30]
[392232008,1761271854139,-500.0,0.00042739,30]
[392232009,1761271854148,-628.61727072,0.00042739,30]
[392232010,1761271854157,-500.0,0.00042739,30]
[392232011,1761271854167,-500.0,0.00042739,30]
[392232012,1761271854177,-500.0,0.00042739,30]
[392232013,1761271854187,-500.0,0.00042739,30]
[392232014,1761271854197,-500.0,0.00042739,30]
[392232015,1761271854207,-500.0,0.00042739,30]
[392232016,1761271854217,-1170.11,0.00042739,30]
[392232017,1761271854227,-500.0,0.00042739,30]
[392232018,1761271854236,-500.0,0.00042739,30]
[392232019,1761271854246,-500.0,0.00042739,30]
[392232020,1761271854255,-500.0,0.00042739,30]
[392232021,1761271854266,-500.0,0.00042739,30]
[392232022,1761271854275,-500.0,0.00042739,30]
[392232023,1761271854284,-500.0,0.00042739,30]
[392232024,1761271854294,-500.0,0.00042739,30]
[392232025,1761271854303,-1281.44,0.00042739,30]
[392232026,1761271854313,-500.0,0.00042739,30]
[392232027,1761271854322,-1149.85,0.00042739,30]
[392232028,1761271854331,-500.0,0.00042739,30]
[392232029,1761271854340,-721.29,0.00042739,30]
[392232030,1761271854349,-500.0,0.00042739,30]
[392232031,1761271854358,-500.0,0.00042739,30]
[392232032,1761271854368,-500.0,0.00042739,30]
[392232033,1761271854377,-949.68,0.00042739,30]
[392232034,1761271854386,-617.74352619,0.00042739,30]
[392232035,1761271854395,-1095.76,0.00042739,30]
[392232036,1761271854405,-752.06,0.00042739,30]
[392232037,1761271854414,-500.0,0.00042739,30]
[392232038,1761271854423,-1008.3,0.00042739,30]
[392232039,1761271854433,-896.07,0.00042739,30]
[392232040,1761271854443,-526.38,0.00042739,30]
[392232041,1761271854453,-500.0,0.00042739,30]
[392232042,1761271854462,-500.0,0.00042739,30]
[392232043,1761271854471,-500.0,0.00042739,30]
[392232044,1761271854481,-500.0,0.00042739,30]
[392232045,1761271854490,-500.0,0.00042739,30]
[392232046,1761271854500,-500.0,0.00042739,30]
[392232047,1761271854509,-643.72,0.00042739,30]
[392232048,1761271854519,-1180.71,0.00042739,30]
[392232049,1761271854529,-500.0,0.00042739,30]
[392232050,1761271854539,-500.0,0.00042739,30]
[392232051,1761271854549,-1096.38,0.00042739,30]
[392232052,1761271854558,-500.0,0.00042739,30]
[392232053,1761271854568,-715.37,0.00042739,30]
[392232054,1761271854577,-500.0,0.00042739,30]
[392232055,1761271854587,-855.05,0.00042739,30]
[392232056,1761271854596,-500.0,0.00042739,30]
[392232057,1761271854606,-1905.27,0.00042739,30]
[392232058,1761271854615,-500.0,0.00042739,30]
[392232059,1761271854625,-500.0,0.00042739,30]
[392232060,1761271854634,-514.64,0.00042739,30]
[392232061,1761271854643,-1125.38,0.00042739,30]
[392232062,1761271854652,-500.0,0.00042739,30]
[392232063,1761271854662,-505.52563461,0.00042739,30]
[392232064,1761271854671,-931.76,0.00042739,30]
[392232065,1761271854680,-542.54,0.00042739,30]
[392232066,1761271854690,-500.0,0.00042739,30]
[392232067,1761271854699,-937.86,0.00042739,30]
[392232068,1761271854708,-1385.84,0.00042739,30]
[392232069,1761271854718,-939.34,0.00042739,30]
[392232070,1761271854727,-500.0,0.00042739,30]
[392232071,1761271854737,-500.0,0.00042739,30]
[392232072,1761271854747,-1058.11,0.00042739,30]
[392232073,1761271854757,-535.40563991,0.00042739,30]
[392232074,1761271854767,-925.75,0.00042739,30]
[392232075,1761271854778,-500.0,0.00042739,30]
[392232076,1761271854788,-500.0,0.00042739,30]
[392232077,1761271854799,-500.0,0.00042739,30]
[392232078,1761271854810,-858.12,0.00042739,30]
[392232079,1761271854819,-500.0,0.00042739,30]
[392232080,1761271854829,-501.43,0.00042739,30]
[392232081,1761271854839,-593.15,0.00042739,30]
[392232082,1761271854848,-749.63,0.00042739,30]
[392232083,1761271854858,-500.0,0.00042739,30]
[392232084,1761271854867,-699.35,0.00042739,30]
[392232085,1761271854877,-687.22,0.00042739,30]
[392232086,1761271854887,-500.0,0.00042739,30]
[392232087,1761271854897,-500.0,0.00042739,30]
[392232088,1761271854906,-1346.88,0.00042739,30]
[392232089,1761271854916,-926.82,0.00042739,30]
[392232090,1761271854926,-614.81,0.00042739,30]
[392232091,1761271854936,-512.07792076,0.00042739,30]
[392232092,1761271854946,-500.0,0.00042739,30]
[392232093,1761271854955,-500.0,0.00042739,30]
[392232094,1761271854965,-632.5,0.00042739,30]
[392232095,1761271854975,-500.0,0.00042739,30]
[392232096,1761271854984,-500.0,0.00042739,30]
[392232097,1761271854994,-376.50764248,0.00042739,30]
[392232098,1761271855003,-868.42,0.00042739,30]
[392232099,1761271855013,-987.29,0.00042739,30]
[392232100,1761271855023,-500.0,0.00042739,30]
[392232101,1761271855032,-500.0,0.00042739,30]
[392232102,1761271855041,-500.0,0.00042739,30]
[392232103,1761271855051,-973.02,0.00042739,30]
[392232104,1761271855060,-500.0,0.00042739,30]
[392232105,1761271855070,-1130.39,0.00042739,30]
[392232106,1761271855079,-630.06,0.00042739,30]
[392232107,1761271855089,-500.0,0.00042739,30]
[392232108,1761271855099,-501.74023634,0.00042739,30]
[392232109,1761271855108,-500.0,0.00042739,30]
[392232110,1761271855118,-546.92,0.00042739,30]
[392232111,1761271855127,-1145.04,0.00042739,30]
[392232112,1761271855137,-500.0,0.00042739,30]
[392232113,1761271855146,-500.0,0.00042739,30]
[392232114,1761271855156,-500.0,0.00042739,30]
[392232115,1761271855165,-544.79,0.00042739,30]
[392232116,1761271855174,-512.3,0.00042739,30]
[392232117,1761271855183,-440.06429264,0.00042739,30]
[392232118,1761271855193,-500.0,0.00042739,30]
[392232119,1761271855203,-500.0,0.00042739,30]
[392232120,1761271855212,-926.49,0.00042739,30]
[392232121,1761271855221,-655.27,0.00042739,30]
[392232122,1761271855230,-1354.98,0.00042739,30]
[392232123,1761271855239,-500.0,0.00042739,30]
[392232124,1761271855249,-500.0,0.00042739,30]
[392232125,1761271855258,-500.0,0.00042739,30]
[392232126,1761271855267,-1112.2,0.00042739,30]
[392232127,1761271855277,-12768.4906784,0.00042763,3]
[392232128,1761271855287,-10368.9258848,0.00042763,3]
[392232129,1761271855295,-500.0,0.00042773,30]
[392232130,1761271855305,-500.0,0.00042773,30]
[392232131,1761271855315,-500.0,0.00042773,30]
[392232132,1761271855324,-500.0,0.00042773,30]
[392232133,1761271855333,-500.0,0.00042773,30]
[392232134,1761271855342,-500.0,0.00042773,30]
[392232135,1761271855351,-500.0,0.00042773,30]
[392232136,1761271855361,-500.0,0.00042773,30]
[392232137,1761271855369,-881.6,0.00042773,30]
[392232138,1761271855378,-256.52242458,0.00042773,30]
[392232139,1761271855880,-269.7546489,0.00042773,30]
[392232140,1761271855890,-500.0,0.00042773,30]
[392232141,1761271855899,-18.74852225,0.00042773,30]
[392232142,1761271855911,-481.25147775,0.00042773,30]
[392232143,1761271855922,-1227.22,0.00042773,30]
[392232144,1761271855933,-198.92177837,0.00042773,30]
[392232145,1761271857079,-399.62118218,0.00041786,2]
[392232146,1761271857764,-503.37881782,0.00041786,2]
[392232147,1761271857775,-408.75822163,0.00042773,30]
[392232148,1761271857785,-677.08,0.00042773,30]
[392232149,1761271857795,-500.0,0.00042773,30]
[392232150,1761271857804,-698.12,0.00042773,30]
[392232151,1761271857814,-500.0,0.00042773,30]
[392232152,1761271857823,-500.0,0.00042773,30]
[392232153,1761271857833,-227.26462373,0.00042773,30]
[392232154,1761271857849,-634.59,0.00042773,30]
[392232155,1761271857860,-245.18346313,0.00042773,30]
[392232156,1761271857870,-704.5,0.00042773,30]
[392232157,1761271857881,-613.78,0.00042773,30]
[392232158,1761271857890,-641.51416926,0.00042773,30]
[392232159,1761271857903,-46.68583074,0.00042773,30]
[392232160,1761271857914,-215.6645835,0.00042773,30]
[392232161,1761271857926,-375.8754165,0.00042773,30]
[392232162,1761271857936,-341.00541653,0.00042773,30]
[392232163,1761271857949,-823.65458347,0.00042773,30]
[392232164,1761271857960,-500.0,0.00042773,30]
[392232165,1761271857972,-500.0,0.00042773,30]
[392232166,1761271857982,-500.0,0.00042774,30]
[392232167,1761271857992,-500.0,0.00042774,30]
[392232168,1761271858004,-500.0,0.00042774,30]
[392232169,1761271858015,-500.0,0.00042774,30]
[392232170,1761271858026,-226.83201083,0.00042851,15]
[392232171,1761271858037,-1332.18944899,0.00042883,15]
[392232172,1761271858047,-173.0,0.00043,90]
[392232173,1761271858056,-161.0,0.00043,90]
[392232174,1761271858065,-14151.57956555,0.00043003,3]
[392232176,1761271894977,-209.34423667,0.00019999,2]
[392232177,1761271898535,-181.14625974,0.00019999,2]
[392232178,1761271903063,-109.50950359,0.00019999,2]
[392232179,1761271903089,-188.42107655,0.00019999,2]
[392232180,1761271904788,-311.57892345,0.00019999,2]
[392232181,1761271904816,-68.67919522,0.00019999,2]
[392232182,1761271923086,195.0,0.00021999,120]
[392232183,1761271923357,195.0,0.00024277,120]
[392232184,1761271925489,-93.6500225,0.00019999,2]
[392232185,1761271925519,-67.98261537,0.00019999,2]
[392232188,1761272134964,-287.42089539,0.00024932,2]
[392232189,1761272212944,-212.57910461,0.00024932,2]
[392232190,1761272212986,-18.74367187,0.00027,2]
[392232191,1761272293730,367.81006215,0.00036693,30]
[392232200,1761272708269,25108.42536973,0.00036695,30]
[392232201,1761272708439,5000.0,0.00015,2]
[392232202,1761272708470,833556.59716344,0.00015,2]
[392232205,1761272764486,391.65078701,0.00036695,30]
[392232213,1761272817703,5000.00678517,0.000162,5]
[392232214,1761272827085,-368.55589245,0.00025,2]
[392232215,1761272850547,151.36231052,0.00036695,120]
[392232249,1761272871504,7746.00649296,0.00036695,120]
[392232251,1761272876584,80671.71828466,0.00015,2]
[392232253,1761272890782,844.10259931,0.0001439,2]
[392232255,1761272893645,310.32811063,0.000135,2]
[392232259,1761272904851,15280.21436631,0.00036695,120]
[392232299,1761273031357,-1180.30410755,0.00025,2]
[392232301,1761273031367,-150.0,0.00025,2]
[392232303,1761273031377,-259.30921488,0.000275,2]
[392232305,1761273031387,-289.45743027,0.00028299,120]
[392232307,1761273031397,-309.938198,0.00029253,2]
[392232309,1761273031406,-167.84640345,0.000294,2]
[392232310,1761273031415,-1717.75282544,0.000295,120]
[392232311,1761273031629,-2237.5703724,0.000295,120]
[392232312,1761273031640,-289.0,0.00029699,2]
[392232313,1761273031650,-300.0,0.00029699,2]
[392232314,1761273031660,-300.0,0.000297,120]
[392232315,1761273031670,-229.72282538,0.0003,120]
[392232316,1761273031681,-500.0,0.0003003,2]
[392232317,1761273031692,-500.0,0.0003003,2]
[392232318,1761273031703,-500.0,0.0003003,2]
[392232319,1761273031714,-500.0,0.0003003,2]
[392232320,1761273031724,-500.0,0.0003003,2]
[392232322,1761273031735,-500.0,0.0003003,2]
[392232323,1761273031746,-500.0,0.0003003,2]
[392232324,1761273031757,-500.0,0.0003003,2]
[392232325,1761273031768,-259.09165171,0.0003003,2]
[392232326,1761273031777,-500.0,0.00030129,2]
[392232328,1761273031787,-638.49668083,0.00030129,2]
[392232330,1761273031797,-365.0,0.00030129,2]
[392232332,1761273031806,-12668.74616325,0.0003013,2]
[392232334,1761273031815,-3431.28139575,0.0003013,2]
[392232336,1761273031825,-198.47260118,0.0003013,2]
[392232337,1761273031835,-249.82626951,0.0003013,2]